bitfinex/quotes_BTCUSD_20250727
["timestamp","ask_amount","ask_price","bid_price","bid_amount"]
[1753601387991,0.57501999,118270.0,118260.0,0.13156843]
[1753601389068,0.59071999,118270.0,118260.0,0.13156843]
[1753601389273,0.57501999,118270.0,118260.0,0.13156843]
[1753601403559,0.57501999,118270.0,118260.0,0.15462843]
[1753601404454,0.25902813,118270.0,118260.0,0.15462843]
[1753601404679,0.57501999,118270.0,118260.0,0.15462843]
[1753601410473,0.57501999,118270.0,118260.0,0.13156843]
[1753601410681,0.59131999,118270.0,118260.0,0.13156843]
[1753601411289,0.57501999,118270.0,118260.0,0.13156843]
[1753601411498,0.25902813,118270.0,118260.0,0.13156843]
[1753601411703,0.57501999,118270.0,118260.0,0.13156843]
[1753601411920,0.57501999,118270.0,118260.0,0.13060843]
[1753601413984,0.25902813,118270.0,118260.0,0.13060843]
[1753601414192,0.57501999,118270.0,118260.0,0.13060843]
[1753601417934,0.59131999,118270.0,118260.0,0.00212843]
[1753601418147,0.59131999,118270.0,118260.0,0.13008843]
[1753601418964,0.59131999,118270.0,118260.0,0.00212843]
[1753601419177,0.59131999,118270.0,118260.0,0.13008843]
[1753601421758,0.57501999,118270.0,118260.0,0.13008843]
[1753601421976,0.57501999,118270.0,118260.0,0.15314843]
[1753601422190,0.57501999,118270.0,118260.0,0.13008843]
[1753601427154,0.90721185,118270.0,118260.0,0.13008843]
[1753601427602,0.97486227,118270.0,118260.0,0.13008843]
[1753601428270,0.97486227,118270.0,118260.0,0.13012843]
[1753601428485,0.97486227,118270.0,118260.0,0.00212843]
[1753601428702,0.97486227,118270.0,118260.0,0.13012843]
[1753601428911,0.97486227,118270.0,118260.0,0.13]
[1753601429125,0.97486227,118270.0,118260.0,0.128]
[1753601429760,1.05933957,118270.0,118260.0,0.129]
[1753601431272,1.05933957,118270.0,118260.0,0.001]
[1753601431499,1.14381687,118270.0,118260.0,0.12896]
[1753601431726,1.15961018,118270.0,118260.0,0.12896]
[1753601432395,1.14381687,118270.0,118260.0,0.12896]
[1753601433034,1.14385687,118270.0,118260.0,0.12896]
[1753601433245,1.14385687,118270.0,118260.0,0.12796]
[1753601438479,1.05937957,118270.0,118260.0,0.12796]
[1753601441054,0.99172915,118270.0,118260.0,0.12796]
[1753601446355,1.01713415,118270.0,118260.0,0.12796]
[1753601454840,1.01813415,118270.0,118260.0,0.12796]
[1753601455544,1.01913415,118270.0,118260.0,0.12796]
[1753601455940,1.10361145,118270.0,118260.0,0.12796]
[1753601456622,1.01913415,118270.0,118260.0,0.12796]
[1753601459970,0.17757469,118260.0,118250.0,0.02773]
[1753601460193,0.80955841,118260.0,118250.0,0.15767207]
[1753601460773,0.80955841,118260.0,118250.0,0.17377207]
[1753601461406,0.17757469,118260.0,118250.0,0.17377207]
[1753601461622,0.80955841,118260.0,118250.0,0.17377207]
[1753601466041,0.17757469,118260.0,118250.0,0.17377207]
[1753601466272,0.80955841,118260.0,118250.0,0.17377207]
[1753601467945,0.17757469,118260.0,118250.0,0.17377207]
[1753601468180,0.80955841,118260.0,118250.0,0.17377207]
[1753601468846,0.8479474,118260.0,118250.0,0.17377207]
[1753601469728,0.80955841,118260.0,118250.0,0.17377207]
[1753601471068,0.83234841,118260.0,118250.0,0.17377207]
[1753601472635,0.83439841,118260.0,118250.0,0.17377207]
[1753601478225,0.20241469,118260.0,118250.0,0.17377207]
[1753601478471,0.51840655,118260.0,118250.0,0.17377207]
[1753601478726,0.83439841,118260.0,118250.0,0.17377207]
[1753601479919,0.51840655,118260.0,118250.0,0.17377207]
[1753601481299,0.51840655,118260.0,118250.0,0.15465207]
[1753601481536,0.20241469,118260.0,118250.0,0.15389207]
[1753601481764,0.51840655,118260.0,118250.0,0.15389207]
[1753601486668,0.83439841,118260.0,118250.0,0.15389207]
[1753601490897,0.51840655,118260.0,118250.0,0.15389207]
[1753601493077,0.83439841,118260.0,118250.0,0.15389207]
[1753601493406,0.83439841,118260.0,118250.0,0.17208207]
[1753601493623,0.51840655,118260.0,118250.0,0.17208207]
[1753601495832,0.51840655,118260.0,118250.0,0.16889207]
[1753601497435,0.21448301,118260.0,118250.0,0.17208207]
[1753601497637,0.53047487,118260.0,118250.0,0.18728207]
[1753601498073,0.53047487,118260.0,118250.0,0.17208207]
[1753601500702,0.53047487,118260.0,118250.0,0.18748207]
[1753601501622,0.53047487,118260.0,118250.0,0.17208207]
[1753601502282,0.55397487,118260.0,118250.0,0.17208207]
[1753601502489,0.55612487,118260.0,118250.0,0.17208207]
[1753601505950,0.55612487,118260.0,118250.0,0.16889207]
[1753601506581,0.58152787,118260.0,118250.0,0.16889207]
[1753601513407,0.58152787,118260.0,118250.0,0.15389207]
[1753601514287,0.89751973,118260.0,118250.0,0.15389207]
[1753601516730,0.58152787,118260.0,118250.0,0.15389207]
[1753601519965,0.58152787,118260.0,118250.0,0.17029207]
[1753601521251,0.58152787,118260.0,118250.0,0.15389207]
[1753601521683,0.58152787,118260.0,118250.0,0.17328207]
[1753601524094,0.58152787,118260.0,118250.0,0.15389207]
[1753601524301,0.26553601,118260.0,118250.0,0.15389207]
[1753601524531,0.58152787,118260.0,118250.0,0.15389207]
[1753601526071,0.5899836,118260.0,118250.0,0.15389207]
[1753601526274,0.5899836,118260.0,118250.0,0.16979207]
[1753601526482,0.5643336,118260.0,118250.0,0.17278207]
[1753601526693,0.5389306,118260.0,118250.0,0.18808207]
[1753601526915,0.5643336,118260.0,118250.0,0.18808207]
[1753601527285,0.5643336,118260.0,118250.0,0.17278207]
[1753601528251,0.9643336,118260.0,118250.0,0.17278207]
[1753601529069,0.9882136,118260.0,118250.0,0.17278207]
[1753601531833,0.9903636,118260.0,118250.0,0.17278207]
[1753601532134,0.9664836,118260.0,118250.0,0.17278207]
[1753601532375,0.9664836,118260.0,118250.0,0.18798207]
[1753601532772,0.9643336,118260.0,118250.0,0.18798207]
[1753601534448,0.9903636,118260.0,118250.0,0.17278207]
[1753601537810,0.9903636,118260.0,118250.0,0.16979207]
[1753601540561,0.9664836,118260.0,118250.0,0.18788207]
[1753601540972,0.9903636,118260.0,118250.0,0.18788207]
[1753601541178,0.9903636,118260.0,118250.0,0.17278207]
[1753601545123,0.9903636,118260.0,118250.0,0.34191526]
[1753601545900,0.47922285,118260.0,118250.0,0.65730712]
[1753601546126,0.487678,118260.0,118250.0,0.76564093]
[1753601546349,0.487678,118260.0,118250.0,0.765641]
[1753601546561,0.0961338,118260.0,118250.0,0.78255395]
[1753601546776,0.087678,118260.0,118250.0,0.45810565]
[1753601546993,0.087678,118260.0,118250.0,0.78255395]
[1753601547198,0.087678,118260.0,118250.0,0.77409751]
[1753601547404,0.08767792,118260.0,118250.0,0.47601846]
[1753601547620,0.06227492,118260.0,118250.0,0.79201032]
[1753601548228,0.06227492,118260.0,118250.0,0.78355395]
[1753601548464,0.06227492,118260.0,118250.0,0.79201032]
[1753601548870,0.07073072,118260.0,118250.0,0.77509751]
[1753601549307,0.06227492,118260.0,118250.0,0.78355395]
[1753601549522,0.06227492,118260.0,118250.0,0.77509751]
[1753601549740,0.06227492,118260.0,118250.0,0.78355395]
[1753601550260,0.06227492,118260.0,118250.0,0.46756209]
[1753601550692,0.06227492,118260.0,118250.0,0.78355395]
[1753601551122,0.06227492,118260.0,118250.0,0.79201032]
[1753601551330,0.05381927,118260.0,118250.0,0.79201032]
[1753601551540,0.05381927,118260.0,118250.0,0.80046662]
[1753601551973,0.06227492,118260.0,118250.0,0.79201032]
[1753601552177,0.06227492,118260.0,118250.0,0.78355395]
[1753601552379,0.06227492,118260.0,118250.0,0.79201032]
[1753601553454,0.06227492,118260.0,118250.0,0.45910565]
[1753601553677,0.07073072,118260.0,118250.0,0.78355395]
[1753601554084,0.06227492,118260.0,118250.0,0.78355395]
[1753601554292,0.06227492,118260.0,118250.0,0.46756209]
[1753601554500,0.05381927,118260.0,118250.0,0.46756209]
[1753601554713,0.06227492,118260.0,118250.0,0.79201025]
[1753601554945,0.06227492,118260.0,118250.0,0.79201032]
[1753601555568,0.06227492,118260.0,118250.0,0.78355395]
[1753601555993,0.06227492,118260.0,118250.0,0.79201032]
[1753601556203,0.06227492,118260.0,118250.0,0.80046662]
[1753601556418,0.06227492,118260.0,118250.0,0.79201032]
[1753601556623,0.05381927,118260.0,118250.0,0.47601846]
[1753601556839,0.06227492,118260.0,118250.0,0.79201032]
[1753601557056,0.06227492,118260.0,118250.0,0.80046647]
[1753601557057,0.03690832,118260.0,118250.0,0.80046647]
[1753601557711,0.04536376,118260.0,118250.0,0.80046647]
[1753601557915,0.03690832,118260.0,118250.0,0.80046647]
[1753601558124,0.04536369,118260.0,118250.0,0.80046647]
[1753601558474,0.0538192,118260.0,118250.0,0.80046647]
[1753601558691,0.04536369,118260.0,118250.0,0.80046647]
[1753601559124,0.0538192,118260.0,118250.0,0.80046647]
[1753601559930,0.04536369,118260.0,118250.0,0.80046647]
[1753601560370,0.03690832,118260.0,118250.0,0.48447461]
[1753601560571,0.04536362,118260.0,118250.0,0.80046647]
[1753601561418,0.05381906,118260.0,118250.0,0.80046647]
[1753601562178,0.05381906,118260.0,118250.0,0.48447461]
[1753601562354,0.05381906,118260.0,118250.0,0.80046647]
[1753601564311,0.04536362,118260.0,118250.0,0.80046647]
[1753601564774,0.05381899,118260.0,118250.0,0.80046647]
[1753601567126,0.06227443,118260.0,118250.0,0.80046647]
[1753601567745,0.06227443,118260.0,118250.0,0.80046655]
[1753601568338,0.06227443,118260.0,118250.0,0.80046612]
[1753601568831,0.06227443,118260.0,118250.0,0.79200997]
[1753601569058,0.03690832,118260.0,118250.0,0.80046612]
[1753601569295,0.04536362,118260.0,118250.0,0.80046612]
[1753601570368,0.03690832,118260.0,118250.0,0.80046612]
[1753601570526,0.04536362,118260.0,118250.0,0.80046612]
[1753601570726,0.03690832,118260.0,118250.0,0.80046612]
[1753601571382,0.04536362,118260.0,118250.0,0.80046612]
[1753601571590,0.03690832,118260.0,118250.0,0.80046612]
[1753601573587,0.03690832,118260.0,118250.0,0.79240918]
[1753601575896,0.04540297,118270.0,118260.0,0.20243056]
[1753601576097,0.04540297,118270.0,118260.0,0.77580081]
[1753601576897,0.04540297,118270.0,118260.0,0.45980895]
[1753601578300,0.04540297,118270.0,118260.0,0.77580081]
[1753601578989,0.04540297,118270.0,118260.0,0.77680081]
[1753601579404,0.05385777,118270.0,118260.0,0.77680081]
[1753601580273,0.04540297,118270.0,118260.0,0.79200081]
[1753601580916,0.05385777,118270.0,118260.0,0.78354537]
[1753601581122,0.05385777,118270.0,118260.0,0.79200088]
[1753601582185,0.05385777,118270.0,118260.0,0.80045632]
[1753601582375,0.05385769,118270.0,118260.0,0.48446446]
[1753601583228,0.05385769,118270.0,118260.0,0.46926446]
[1753601583646,0.04540297,118270.0,118260.0,0.46926446]
[1753601584056,0.04540297,118270.0,118260.0,0.46080902]
[1753601584267,0.05385769,118270.0,118260.0,0.78525632]
[1753601585516,0.0454029,118270.0,118260.0,0.78525632]
[1753601585738,0.03694832,118270.0,118260.0,0.78525632]
[1753601586195,0.0454029,118270.0,118260.0,0.78525632]
[1753601587472,0.03694832,118270.0,118260.0,0.46926446]
[1753601587700,0.03694832,118270.0,118260.0,0.80045632]
[1753601588323,0.03694832,118270.0,118260.0,0.82595077]
[1753601588992,0.03694832,118270.0,118260.0,0.50995891]
[1753601589215,0.03694832,118270.0,118260.0,0.82595077]
[1753601592016,0.03694832,118270.0,118260.0,0.81075077]
[1753601592643,0.03694832,118270.0,118260.0,0.49475891]
[1753601592894,0.03694832,118270.0,118260.0,0.81075077]
[1753601593838,0.03694832,118270.0,118260.0,0.82585077]
[1753601595764,0.03694832,118270.0,118260.0,0.81075077]
[1753601601703,0.03694832,118270.0,118260.0,1.01379077]
[1753601604436,0.34135403,118280.0,118270.0,0.18601468]
[1753601604666,0.34346403,118280.0,118270.0,0.31401475]
[1753601604885,0.3519184,118280.0,118270.0,0.33823475]
[1753601605323,0.35191833,118280.0,118270.0,0.33823475]
[1753601605751,0.34346403,118280.0,118270.0,0.34668969]
[1753601605977,0.02747217,118280.0,118270.0,0.34864969]
[1753601606407,0.35191826,118280.0,118270.0,0.34864969]
[1753601606726,0.35191826,118280.0,118270.0,0.34019475]
[1753601606921,0.35191826,118280.0,118270.0,0.34864969]
[1753601607374,0.34346396,118280.0,118270.0,0.34864969]
[1753601607820,0.35191826,118280.0,118270.0,0.34864969]
[1753601608123,0.35191826,118280.0,118270.0,0.33173974]
[1753601608322,0.35516826,118280.0,118270.0,0.34864983]
[1753601608619,0.35516826,118280.0,118270.0,0.34019482]
[1753601609902,0.34671396,118280.0,118270.0,0.34864976]
[1753601610106,0.35516826,118280.0,118270.0,0.34864983]
[1753601610304,0.34671396,118280.0,118270.0,0.35710477]
[1753601610453,0.35516826,118280.0,118270.0,0.35710477]
[1753601610690,0.35516826,118280.0,118270.0,0.34864983]
[1753601611247,0.35516826,118280.0,118270.0,0.34019482]
[1753601611434,0.35516826,118280.0,118270.0,0.34864983]
[1753601612007,0.35516826,118280.0,118270.0,0.34816983]
[1753601612205,0.34671396,118280.0,118270.0,0.35662477]
[1753601612638,0.35516818,118280.0,118270.0,0.35662477]
[1753601613409,0.34346396,118280.0,118270.0,0.36507964]
[1753601613657,0.34346389,118280.0,118270.0,0.44480179]
[1753601613853,0.34346389,118280.0,118270.0,0.45325659]
[1753601614828,0.34346389,118280.0,118270.0,0.45325623]
[1753601615052,0.00211,118280.0,118270.0,0.76924809]
[1753601615282,0.47642368,118290.0,118280.0,0.17754473]
[1753601615509,0.43917368,118290.0,118280.0,0.20176473]
[1753601615762,0.75516554,118290.0,118280.0,0.20176473]
[1753601616205,0.75516554,118290.0,118280.0,0.2186734]
[1753601616644,0.75516554,118290.0,118280.0,0.2102191]
[1753601617961,0.43917368,118290.0,118280.0,0.2102191]
[1753601618176,0.75516554,118290.0,118280.0,0.2186734]
[1753601618769,0.75516554,118290.0,118280.0,0.2102191]
[1753601619191,0.75516554,118290.0,118280.0,0.22712762]
[1753601619432,0.72135186,118290.0,118280.0,0.2355817]
[1753601619665,0.40211,118290.0,118280.0,0.32523857]
[1753601619879,0.40845315,118290.0,118280.0,0.34033857]
[1753601620108,0.00845315,118290.0,118280.0,0.34033857]
[1753601620323,0.42405746,118300.0,118280.0,0.34033857]
[1753601620324,0.39020738,118300.0,118290.0,0.18598336]
[1753601620554,0.79231738,118300.0,118290.0,0.3139835]
[1753601620784,0.80077039,118300.0,118290.0,0.3139835]
[1753601621207,0.80077039,118300.0,118290.0,0.33820343]
[1753601621208,0.77721738,118300.0,118290.0,0.33820343]
[1753601621423,0.46967853,118300.0,118290.0,0.33820343]
[1753601621616,0.80077039,118300.0,118290.0,0.32129599]
[1753601621840,0.80177039,118300.0,118290.0,0.32129599]
[1753601622338,0.79331738,118300.0,118290.0,0.30552978]
[1753601622578,0.73600695,118300.0,118290.0,0.44151379]
[1753601622813,0.75391261,118300.0,118290.0,0.42460684]
[1753601623045,0.74545967,118300.0,118290.0,0.44151393]
[1753601623260,0.4379206,118300.0,118290.0,0.44151393]
[1753601623442,0.4379206,118300.0,118290.0,0.44996737]
[1753601623660,0.75391246,118300.0,118290.0,0.44151393]
[1753601624158,0.35391246,118300.0,118290.0,0.44151393]
[1753601626826,0.35391246,118300.0,118290.0,0.42460684]
[1753601627028,0.3623654,118300.0,118290.0,0.43306049]
[1753601627321,0.35391246,118300.0,118290.0,0.441514]
[1753601627546,0.35391246,118300.0,118290.0,0.44151407]
[1753601627765,0.3623659,118300.0,118290.0,0.43306056]
[1753601627986,0.3623659,118300.0,118290.0,0.44151421]
[1753601628418,0.35391289,118300.0,118290.0,0.44151421]
[1753601628631,0.35391289,118300.0,118290.0,0.44996779]
[1753601628889,0.35391289,118300.0,118290.0,0.43306056]
[1753601629122,0.36236597,118300.0,118290.0,0.42460684]
[1753601629342,0.36561597,118300.0,118290.0,0.42460684]
[1753601629550,0.35716289,118300.0,118290.0,0.42460684]
[1753601629809,0.3656159,118300.0,118290.0,0.42460684]
[1753601630243,0.3656159,118300.0,118290.0,0.43306056]
[1753601632140,0.35716289,118300.0,118290.0,0.44151421]
[1753601632762,0.3656159,118300.0,118290.0,0.43306056]
[1753601633217,0.3656159,118300.0,118290.0,0.44151421]
[1753601633431,0.35716289,118300.0,118290.0,0.44151421]
[1753601633649,0.35716289,118300.0,118290.0,0.44996779]
[1753601633849,0.35716289,118300.0,118290.0,0.44151421]
[1753601634053,0.36561583,118300.0,118290.0,0.44151421]
[1753601634773,0.36561583,118300.0,118290.0,0.43306056]
[1753601635349,0.36561583,118300.0,118290.0,0.44151421]
[1753601635567,0.36561583,118300.0,118290.0,0.43306056]
[1753601635789,0.04962397,118300.0,118290.0,0.43306056]
[1753601635987,0.36561583,118300.0,118290.0,0.43306056]
[1753601637171,0.36561626,118300.0,118290.0,0.43306056]
[1753601638010,0.35716318,118300.0,118290.0,0.44151421]
[1753601638219,0.35716318,118300.0,118290.0,0.43306056]
[1753601638430,0.35391318,118300.0,118290.0,0.44151421]
[1753601639308,0.36236626,118300.0,118290.0,0.43306056]
[1753601639519,0.35391318,118300.0,118290.0,0.43306056]
[1753601639960,0.35391318,118300.0,118290.0,0.44454421]
[1753601640380,0.36236626,118300.0,118290.0,0.43609056]
[1753601641297,0.36236619,118300.0,118290.0,0.43609056]
[1753601642174,0.35391318,118300.0,118290.0,0.44454421]
[1753601642388,0.36236626,118300.0,118290.0,0.43609056]
[1753601642798,0.36236626,118300.0,118290.0,0.41918305]
[1753601643005,0.36236626,118300.0,118290.0,0.42460684]
[1753601645359,0.36236626,118300.0,118290.0,0.41615305]
[1753601645360,0.35391354,118300.0,118290.0,0.41615305]
[1753601645571,0.35391354,118300.0,118290.0,0.42460684]
[1753601645782,0.35391354,118300.0,118290.0,0.41615305]
[1753601646080,0.35391354,118300.0,118290.0,0.42460684]
[1753601646538,0.35391354,118300.0,118290.0,0.41615305]
[1753601647286,0.35391354,118300.0,118290.0,0.40773329]
[1753601649128,0.35391354,118300.0,118290.0,0.41618708]
[1753601649358,0.34546046,118300.0,118290.0,0.4246408]
[1753601649767,0.35391354,118300.0,118290.0,0.41618708]
[1753601649973,0.35391354,118300.0,118290.0,0.4246408]
[1753601650236,0.35391354,118300.0,118290.0,0.41618708]
[1753601650411,0.35391354,118300.0,118290.0,0.4246408]
[1753601650557,0.35391354,118300.0,118290.0,0.41618708]
[1753601651795,0.35391354,118300.0,118290.0,0.4246408]
[1753601652090,0.35391354,118300.0,118290.0,0.44979173]
[1753601652305,0.34546046,118300.0,118290.0,0.44979173]
[1753601652516,0.35391354,118300.0,118290.0,0.45282173]
[1753601652765,0.35391354,118300.0,118290.0,0.44436801]
[1753601653407,0.35391354,118300.0,118290.0,0.45282173]
[1753601653832,0.35391354,118300.0,118290.0,0.44436801]
[1753601654082,0.35391354,118300.0,118290.0,0.45282173]
[1753601654520,0.35391354,118300.0,118290.0,0.46139672]
[1753601655514,0.34546046,118300.0,118290.0,0.46985037]
[1753601655723,0.34546046,118300.0,118290.0,0.46139672]
[1753601656127,0.34546046,118300.0,118290.0,0.47830395]
[1753601656327,0.33700752,118300.0,118290.0,0.46985037]
[1753601656947,0.02101566,118300.0,118290.0,0.46985037]
[1753601657154,0.02101566,118300.0,118290.0,0.47830388]
[1753601657356,0.33700752,118300.0,118290.0,0.46985037]
[1753601657572,0.33200752,118300.0,118290.0,0.47830395]
[1753601658023,0.34046053,118300.0,118290.0,0.46985037]
[1753601658277,0.34046046,118300.0,118290.0,0.46985037]
[1753601658495,0.33200752,118300.0,118290.0,0.46985037]
[1753601658819,0.33200752,118300.0,118290.0,0.47830388]
[1753601659030,0.33200752,118300.0,118290.0,0.47830395]
[1753601660893,0.33200752,118300.0,118290.0,0.46985037]
[1753601661502,0.33200752,118300.0,118290.0,0.47830395]
[1753601662298,0.33200723,118300.0,118290.0,0.50275746]
[1753601662503,0.34046017,118300.0,118290.0,0.51020395]
[1753601663020,0.34046017,118300.0,118290.0,0.49329672]
[1753601663227,0.34046017,118300.0,118290.0,0.50175037]
[1753601664035,0.34046017,118300.0,118290.0,0.51020395]
[1753601664259,0.34046017,118300.0,118290.0,0.48585037]
[1753601664410,0.3404601,118300.0,118290.0,0.4858503]
[1753601664612,0.34891304,118300.0,118290.0,0.47739672]
[1753601664808,0.34891304,118300.0,118290.0,0.4858503]
[1753601665058,0.34891304,118300.0,118290.0,0.48585037]
[1753601665230,0.33200723,118300.0,118290.0,0.48585037]
[1753601665441,0.01601537,118300.0,118290.0,0.49430395]
[1753601665674,0.34046017,118300.0,118290.0,0.49430395]
[1753601665891,0.33200723,118300.0,118290.0,0.48585037]
[1753601666084,0.32444451,118300.0,118290.0,0.50940388]
[1753601666289,0.33289688,118300.0,118290.0,0.50095009]
[1753601666453,0.3413496,118300.0,118290.0,0.50095009]
[1753601666660,0.3413496,118300.0,118290.0,0.49249658]
[1753601666860,0.33289688,118300.0,118290.0,0.50095009]
[1753601667577,0.33289688,118300.0,118290.0,0.51140353]
[1753601667782,0.33289688,118300.0,118290.0,0.51985682]
[1753601668391,0.33289688,118300.0,118290.0,0.5198569]
[1753601668637,0.3413496,118300.0,118290.0,0.51140353]
[1753601668807,0.34134953,118300.0,118290.0,0.51140346]
[1753601669215,0.33289688,118300.0,118290.0,0.51140346]
[1753601669451,0.33289688,118300.0,118290.0,0.50395009]
[1753601669671,0.01690502,118300.0,118290.0,0.52085675]
[1753601669857,0.33289688,118300.0,118290.0,0.52085675]
[1753601670354,0.33289688,118300.0,118290.0,0.51240346]
[1753601670846,0.33289688,118300.0,118290.0,0.50395009]
[1753601671043,0.3413496,118300.0,118290.0,0.51240353]
[1753601671249,0.33289688,118300.0,118290.0,0.51240353]
[1753601671452,0.33289688,118300.0,118290.0,0.5208569]
[1753601671658,0.33289688,118300.0,118290.0,0.52085647]
[1753601672081,0.3244443,118300.0,118290.0,0.52085647]
[1753601672543,0.33289688,118300.0,118290.0,0.52085647]
[1753601673010,0.31599186,118300.0,118290.0,0.52085647]
[1753601673223,0.73293566,118310.0,118300.0,0.17751464]
[1753601673469,0.74984003,118310.0,118300.0,0.33863471]
[1753601673692,0.74984003,118310.0,118300.0,0.34980471]
[1753601673887,0.34984003,118310.0,118300.0,0.33420471]
[1753601674182,0.34984003,118310.0,118300.0,0.3257517]
[1753601674423,0.35186003,118310.0,118300.0,0.34265779]
[1753601675179,0.35186003,118310.0,118300.0,0.33420478]
[1753601675417,0.35186003,118310.0,118300.0,0.34265779]
[1753601675596,0.35185996,118310.0,118300.0,0.43558803]
[1753601675847,0.35185996,118310.0,118300.0,0.42713509]
[1753601676476,0.35185996,118310.0,118300.0,0.41868208]
[1753601676699,0.03384803,118310.0,118300.0,0.42713495]
[1753601676928,0.34983989,118310.0,118300.0,0.44323495]
[1753601677365,0.34983989,118310.0,118300.0,0.45168789]
[1753601677595,0.34138774,118310.0,118300.0,0.46014068]
[1753601677814,0.33293566,118310.0,118300.0,0.4685934]
[1753601677962,0.33293566,118310.0,118300.0,0.46014068]
[1753601678552,0.33293566,118310.0,118300.0,0.4685934]
[1753601678787,0.33293566,118310.0,118300.0,0.46014068]
[1753601679197,0.32448365,118310.0,118300.0,0.46014068]
[1753601679414,0.34138753,118310.0,118300.0,0.4685934]
[1753601679829,0.34138753,118310.0,118300.0,0.48469297]
[1753601680168,0.34138753,118310.0,118300.0,0.47624032]
[1753601680371,0.34138753,118310.0,118300.0,0.4677876]
[1753601680736,0.34138753,118310.0,118300.0,0.45933481]
[1753601681048,0.34983968,118310.0,118300.0,0.44323481]
[1753601681245,0.34983968,118310.0,118300.0,0.43478194]
[1753601681451,0.35829197,118310.0,118300.0,0.43478194]
[1753601681673,0.35829197,118310.0,118300.0,0.43478201]
[1753601682028,0.35829197,118310.0,118300.0,0.44323495]
[1753601682242,0.35829197,118310.0,118300.0,0.44623495]
[1753601682902,0.34983968,118310.0,118300.0,0.44623495]
[1753601683113,0.35829197,118310.0,118300.0,0.44623495]
[1753601684070,0.35829197,118310.0,118300.0,0.43778201]
[1753601684535,0.34983968,118310.0,118300.0,0.44623495]
[1753601685141,0.34983968,118310.0,118300.0,0.45468782]
[1753601685342,0.34138753,118310.0,118300.0,0.45468767]
[1753601685767,0.34138753,118310.0,118300.0,0.46314032]
[1753601685973,0.32448365,118310.0,118300.0,0.47904032]
[1753601686181,0.33293559,118310.0,118300.0,0.4874929]
[1753601686382,0.33293559,118310.0,118300.0,0.47904032]
[1753601688176,0.01694373,118310.0,118300.0,0.47904032]
[1753601688383,0.34138767,118310.0,118300.0,0.47058767]
[1753601688603,0.3413876,118310.0,118300.0,0.47058767]
[1753601688799,0.34983975,118310.0,118300.0,0.44623495]
[1753601689448,0.34983975,118310.0,118300.0,0.45468782]
[1753601689574,0.34983975,118310.0,118300.0,0.44623495]
[1753601690645,0.34983975,118310.0,118300.0,0.45468782]
[1753601690885,0.34983975,118310.0,118300.0,0.46314061]
[1753601691040,0.34983975,118310.0,118300.0,0.45468782]
[1753601691623,0.03384789,118310.0,118300.0,0.45468782]
[1753601691830,0.34983975,118310.0,118300.0,0.45468782]
[1753601693029,0.35829204,118310.0,118300.0,0.44623495]
[1753601693249,0.34983975,118310.0,118300.0,0.44623495]
[1753601693732,0.34983975,118310.0,118300.0,0.45468782]
[1753601693935,0.34983975,118310.0,118300.0,0.44623495]
[1753601694365,0.03384789,118310.0,118300.0,0.45468782]
[1753601694584,0.34983975,118310.0,118300.0,0.44623495]
[1753601694813,0.34983975,118310.0,118300.0,0.45468782]
[1753601695029,0.34983975,118310.0,118300.0,0.43013495]
[1753601695214,0.34983975,118310.0,118300.0,0.43858782]
[1753601695361,0.3413876,118310.0,118300.0,0.43858782]
[1753601695570,0.3413876,118310.0,118300.0,0.46244061]
[1753601695786,0.3413876,118310.0,118300.0,0.47089333]
[1753601696404,0.3413876,118310.0,118300.0,0.46244061]
[1753601697779,0.34983975,118310.0,118300.0,0.45398782]
[1753601698353,0.34983975,118310.0,118300.0,0.46244061]
[1753601698549,0.34983975,118310.0,118300.0,0.45398782]
[1753601698752,0.34983975,118310.0,118300.0,0.44553495]
[1753601698952,0.34983975,118310.0,118300.0,0.43013495]
[1753601699148,0.35829197,118310.0,118300.0,0.43013495]
[1753601699397,0.34983975,118310.0,118300.0,0.43013495]
[1753601699866,0.34983975,118310.0,118300.0,0.44704061]
[1753601700185,0.34983975,118310.0,118300.0,0.43858782]
[1753601700392,0.35829197,118310.0,118300.0,0.43013495]
[1753601700818,0.35829197,118310.0,118300.0,0.43858782]
[1753601701030,0.35829197,118310.0,118300.0,0.43013495]
[1753601701339,0.34983975,118310.0,118300.0,0.43858782]
[1753601701762,0.34983975,118310.0,118300.0,0.43013495]
[1753601702013,0.34983975,118310.0,118300.0,0.43858782]
[1753601702514,0.34983975,118310.0,118300.0,0.63313495]
[1753601702719,0.35829204,118310.0,118300.0,0.62468201]
[1753601702914,0.34983975,118310.0,118300.0,0.63313495]
[1753601703182,0.35829197,118310.0,118300.0,0.63313495]
[1753601703659,0.34983975,118310.0,118300.0,0.64158782]
[1753601704785,0.34983975,118310.0,118300.0,0.65004061]
[1753601705026,0.35829204,118310.0,118300.0,0.63313495]
[1753601705247,0.34983975,118310.0,118300.0,0.63313495]
[1753601705471,0.34983975,118310.0,118300.0,0.64158782]
[1753601705699,0.36038204,118310.0,118300.0,0.62468201]
[1753601706179,0.35193025,118310.0,118300.0,0.62468208]
[1753601707090,0.35193025,118310.0,118300.0,0.616229]
[1753601707343,0.35193025,118310.0,118300.0,0.62468208]
[1753601707836,0.35193025,118310.0,118300.0,0.63313509]
[1753601709385,0.34347796,118310.0,118300.0,0.64158803]
[1753601709687,0.35193025,118310.0,118300.0,0.64158803]
[1753601709913,0.35193025,118310.0,118300.0,0.63313509]
[1753601711249,0.35193025,118310.0,118300.0,0.62468208]
[1753601712067,0.35193025,118310.0,118300.0,0.616229]
[1753601712294,0.35193025,118310.0,118300.0,0.62468208]
[1753601713050,0.35193025,118310.0,118300.0,0.63313509]
[1753601713278,0.34347796,118310.0,118300.0,0.6500409]
[1753601713866,0.34138796,118310.0,118300.0,0.6500409]
[1753601715146,0.34138796,118310.0,118300.0,0.64158803]
[1753601715348,0.34138796,118310.0,118300.0,0.6500409]
[1753601715550,0.34138796,118310.0,118300.0,0.64158803]
[1753601716031,0.34984025,118310.0,118300.0,0.63313509]
[1753601716453,0.34984025,118310.0,118300.0,0.64158803]
[1753601716588,0.34984025,118310.0,118300.0,0.63313509]
[1753601716809,0.34984025,118310.0,118300.0,0.42168208]
[1753601717125,0.34984025,118310.0,118300.0,0.413229]
[1753601717524,0.34984025,118310.0,118300.0,0.42168208]
[1753601717745,0.34984025,118310.0,118300.0,0.43013509]
[1753601717942,0.34984025,118310.0,118300.0,0.42168208]
[1753601718143,0.35829262,118310.0,118300.0,0.42168208]
[1753601718546,0.35829262,118310.0,118300.0,0.43013509]
[1753601718759,0.35829262,118310.0,118300.0,0.42168208]
[1753601719167,0.35829262,118310.0,118300.0,0.43013509]
[1753601719334,0.35829262,118310.0,118300.0,0.42168208]
[1753601720667,0.34984068,118310.0,118300.0,0.413229]
[1753601720882,0.51252608,118310.0,118300.0,0.413229]
[1753601722191,0.3350263,118310.0,118300.0,0.42168201]
[1753601722650,0.3350263,118310.0,118300.0,0.42168208]
[1753601723102,0.3350263,118310.0,118300.0,0.413229]
[1753601724404,0.34347867,118310.0,118300.0,0.42168208]
[1753601724818,0.34347867,118310.0,118300.0,0.413229]
[1753601725700,0.51252608,118310.0,118300.0,0.413149]
[1753601731364,0.50407393,118310.0,118300.0,0.413149]
[1753601731572,0.33502623,118310.0,118300.0,0.413149]
[1753601731783,0.50407364,118310.0,118300.0,0.413149]